Cogmind - Beta 13 @@@ ROGUE MODE // 2024.07.20 @ 14:09:54 Player: Wabbajack Result: Self-destructed Performance ------------- Evolutions (2) 1000 Regions Visited (5) 1000 Robots Destroyed (33) 165 Value Destroyed (1199) 1199 Prototype IDs (2) 40 Alien Tech Used (0) 0 Bonus (0) 0 TOTAL SCORE: 3404 Bonus ------- None Cogmind --------- Core Integrity 297/550 Matter 167/300 Energy 111/160 System Corruption 0% Temperature Danger (418) Movement Core (700) Ox13 Location -8/Materials Parts ------- > --- POWER (1) -------- Light Nuclear Core > --- PROPULSION (3) --- (None) > --- UTILITY (4) ------ Large Storage Unit Power Shielding Hardened Medium Armor Plating > --- WEAPON (3) ------- Beam Rifle Particle Gun > --- INVENTORY (15) --- Aluminum Leg Aluminum Leg Compact Matter Pod (150) Advanced Targeting Computer Improved Utility Shielding Beamcaster Ion Cannon Peak State ------------ > --- POWER ------------ Fission Core > --- PROPULSION ------- Carbon-fiber Leg Carbon-fiber Leg Flexi-carbon Leg > --- UTILITY ---------- Advanced Heat Sink Improved Cooling System Large Storage Unit Power Shielding > --- WEAPON ----------- Gatling Laser Beamcaster Gauss Cannon > --- INVENTORY -------- Light Nuclear Core Aluminum Leg Aluminum Leg Aluminum Leg Compact Battery Compact Matter Pod Advanced Targeting Computer Improved Utility Shielding Hardened Medium Armor Plating Beam Rifle Particle Gun Ion Cannon Rocket Launcher [Rating: 43] Favorites ----------- Power Fission Core Engine Ion Engine Power Core Fission Core Propulsion Aluminum Leg Leg Aluminum Leg Utility Small Storage Unit Device Improved Cooling System Storage Small Storage Unit Protection Power Shielding Weapon Assault Rifle Energy Gun Beamcaster Ballistic Gun Assault Rifle Ballistic Cannon Gauss Cannon Launcher Rocket Launcher Build | -11 -10 -10 -9 -9 -8 ------- Run | Yrd Mat Min Mat Min Mat Slots Evolved 4 | . . . 2 . 2 Power . | . . . . . . Propulsion 1 | . . . 1 . . Utility 2 | . . . 1 . 1 Weapon 1 | . . . . . 1 Parts Attached 50 | 6 5 9 9 6 15 Power 4 | 1 . 2 . . 1 Engine 2 | 1 . 1 . . . Core 2 | . . 1 . . 1 Reactor . | . . . . . . Propulsion 12 | 2 2 3 2 2 1 Treads . | . . . . . . Leg 12 | 2 2 3 2 2 1 Wheel . | . . . . . . Hover . | . . . . . . Flight . | . . . . . . Utility 13 | 1 . 2 3 2 5 Device 6 | . . 2 2 1 1 Storage 4 | 1 . . . 1 2 Processor . | . . . . . . Hackware . | . . . . . . Protection 3 | . . . 1 . 2 Artifact . | . . . . . . Weapon 21 | 2 3 2 4 2 8 Energy Gun 7 | . . . 1 1 5 Energy Cannon . | . . . . . . Ballistic Gun 8 | 2 2 2 2 . . Ballistic Cannon 3 | . 1 . . 1 1 Launcher 3 | . . . 1 . 2 Special Weapon . | . . . . . . Impact Weapon . | . . . . . . Slashing Weapon . | . . . . . . Piercing Weapon . | . . . . . . Special Melee Weapon . | . . . . . . Unidentified Prototypes 2 | . . 1 . . 1 Parts Lost 10 | . 1 4 1 . 4 Power 2 | . . 1 . . 1 Propulsion 2 | . . 1 . . 1 Utility 3 | . . . 1 . 2 Weapon 3 | . 1 2 . . . Highest Loss Streak 4 | . 1 4 1 . 3 To Critical Strikes . | . . . . . . Average Slot Usage (%) 94 | . 85 89 100 100 96 Engine 3 | . 14 10 . . . Core 7 | . . 2 11 11 8 Leg 28 | . 28 26 33 33 25 Device 12 | . . 6 20 11 14 Storage 11 | . 14 14 11 11 9 Protection 5 | . . . 1 11 11 Energy Gun 7 | . . . 1 11 17 Ballistic Gun 13 | . 21 27 19 2 . Ballistic Cannon 4 | . 6 . . 8 8 Naked Turns . | . . . . . . Heaviest Build 50 | 14 15 19 29 41 50 Greatest Support 50 | 20 20 30 43 50 50 Greatest Overweight (x) 4 | 4 . . . . 4 Average Overweight (x) . | . . . . . . Largest Inventory Capacity 15 | 8 8 8 8 10 15 Average Capacity 9 | 7 8 8 8 8 11 Most Carried 14 | 1 8 8 8 8 14 Average Carried 7 | . 5 7 7 7 9 Final Capacity 15 | 8 8 8 8 10 15 Final Carried 8 | . 7 8 7 8 7 Class Distribution -------------------- 40% | Scavenger-Mutant 29% | Mutant 29% | Scavenger-Tank Dominant Class ---------------- Mutant | -10/Materials Mutant | -10/Mines Scavenger-Mutant | -9/Materials Scavenger-Mutant | -9/Mines Scavenger-Tank | -8/Materials Resources | -11 -10 -10 -9 -9 -8 ----------- Run | Yrd Mat Min Mat Min Mat Matter Collected 1157 | 113 105 502 183 134 120 Remotely . | . . . . . . Salvage Created 1257 | . 111 156 222 253 515 Parts 63 | . 7 7 14 10 25 Haulers Intercepted . | . . . . . . Recyclers Shooed . | . . . . . . Parts Field Recycled . | . . . . . . Retrieved Matter . | . . . . . . Parts Self-Destructed . | . . . . . . Prevented . | . . . . . . Kills | -11 -10 -10 -9 -9 -8 ------- Run | Yrd Mat Min Mat Min Mat Combat Hostiles Destroyed 34 | . 4 6 8 4 12 Guns 19 | . 3 6 4 2 4 Cannons 8 | . 1 . . 2 5 AOE 7 | . . . 4 . 3 Classes Destroyed 9 | . 2 1 1 1 4 Worker 1 | . . . . . 1 Recycler 1 | . . . . 1 . Swarmer 5 | . 2 . 3 . . Cutter 1 | . . . . . 1 Grunt 20 | . 2 3 3 4 8 Brawler 1 | . . . . . 1 Sentry 3 | . . . 2 . 1 Hunter 1 | . . . . . 1 Assembled 3 | . . 3 . . . Best Kill Streak 7 | . 3 2 4 5 7 Combat Bots Only 6 | . 3 2 4 4 6 Max Kills in Single Turn 2 | . 1 1 2 2 2 Gunslinging . | . . . . . . Exploded 2 | . . . 2 . 2 Melee . | . . . . . . Uniques/NPCs Destroyed . | . . . . . . Combat | -11 -10 -10 -9 -9 -8 -------- Run | Yrd Mat Min Mat Min Mat Hostile Shots Fired 213 | . 67 48 33 7 58 Missed 66 | . 20 15 13 3 15 Damage Taken 2175 | . 449 427 340 41 918 Core 467 | . 75 112 27 . 253 Absorbed by Shields . | . . . . . . Redirected to Shielding 24 | . . . . . 24 Core Remaining (%) 72 | 100 . 25 . 93 . Volleys Fired 83 | . 22 20 13 8 20 Largest 3 | . 2 2 2 2 3 Hottest 203 | . 55 40 76 104 203 Shots Fired 172 | . 43 35 26 16 52 Gun 133 | . 32 35 20 8 38 Cannon 32 | . 11 . . 8 13 Launcher 7 | . . . 6 . 1 Special . | . . . . . . Kinetic 113 | . 43 35 14 8 13 Thermal 52 | . . . 6 8 38 Explosive 7 | . . . 6 . 1 Electromagnetic . | . . . . . . Robot Hit Streak 13 | . 13 7 12 4 7 Robot Miss Streak 6 | . 4 3 3 3 6 Penetration Max . | . . . . . . Secondary Targets 1 | . 1 . . . . Max Gunslinging Chain 1 | . 1 . . . . Shots Hit Robots 93 | . 23 20 18 8 24 Core Hits 74 | . 8 11 15 5 35 Critical Kills . | . . . . . . Critical Parts Destroyed . | . . . . . . Critical Strikes 3 | . . . 1 . 2 Burn 1 | . . . 1 . . Blast 2 | . . . . . 2 Melee Attacks . | . . . . . . Impact . | . . . . . . Slashing . | . . . . . . Piercing . | . . . . . . Sneak Attacks . | . . . . . . Combat Hostiles . | . . . . . . Follow-up Attacks . | . . . . . . Damage Inflicted 2154 | . 330 260 408 197 959 Guns 1165 | . 205 260 210 58 432 Cannons 395 | . 125 . . 139 131 Explosions 551 | . . . 193 . 358 Melee . | . . . . . . Ramming 43 | . . . 5 . 38 Kinetic 985 | . 330 260 125 139 131 Thermal 575 | . . . 85 58 432 Explosive 389 | . . . 193 . 196 Electromagnetic 162 | . . . . . 162 Impact . | . . . . . . Slashing . | . . . . . . Piercing . | . . . . . . Highest Corruption . | . . . . . . Average Corruption . | . . . . . . Corruption Purged . | . . . . . . Corruption Blocked . | . . . . . . Overload Shots . | . . . . . . Overflow Damage . | . . . . . . Projectiles . | . . . . . . Explosions . | . . . . . . Melee . | . . . . . . Knockbacks 2 | . 1 . . 1 . Impact . | . . . . . . Kinetic 2 | . 1 . . 1 . Secondary . | . . . . . . Self-Inflicted Damage 165 | . . . 75 . 90 Shots 8 | . . . 4 . 4 Rammed . | . . . . . . Targets Rammed 5 | . . . 1 . 4 Kicked 5 | . . . 1 . 4 Crushed . | . . . . . . Highest Temperature 418 | . 16 17 6 . 418 Average Temperature 88 | . 7 7 4 . 139 Received Heat Transfer 582 | . 120 237 93 24 108 Effects 5 | . . . . . 5 Shutdowns 1 | . . . . . 1 Interference 2 | . . . . . 2 Matter Decay 1 | . . . . . 1 Short Circuit 1 | . . . . . 1 Siege Activations . | . . . . . . Robots Corrupted . | . . . . . . Combat Hostiles . | . . . . . . Parts Fried . | . . . . . . Impact Corruptions . | . . . . . . Robots Melted . | . . . . . . Combat Hostiles . | . . . . . . Parts Melted 3 | . . . . 1 2 Heat Transferred 1365 | . . . 296 148 921 Parts Sabotaged . | . . . . . . Parts Stolen . | . . . . . . Parts Stripped . | . . . . . . Power Chain Reactions 1 | . . . . . 1 Alert | -11 -10 -10 -9 -9 -8 ------- Run | Yrd Mat Min Mat Min Mat Peak Influence 334 | . 180 86 149 170 334 Initial 66 | . . 11 . 46 66 Average 90 | . 57 19 111 123 132 Maximum Alert Level 1 | . . . . . 1 Low Security (%) 96 | 100 100 100 100 100 88 Level 1 3 | . . . . . 11 Level 2 . | . . . . . . Level 3 . | . . . . . . Level 4 . | . . . . . . Level 5 . | . . . . . . High Security . | . . . . . . Max Security . | . . . . . . Squads Dispatched 6 | . . . 1 1 4 Investigation 2 | . . . . 1 1 Extermination . | . . . . . . Reinforcement 4 | . . . 1 . 3 Assault . | . . . . . . Garrison . | . . . . . . Intercept . | . . . . . . Searches Triggered . | . . . . . . Construction Impeded . | . . . . . . Haulers Reinforced . | . . . . . . Active Scanning Responses . | . . . . . . Cargo Convoy Interrupts . | . . . . . . Stealth | -11 -10 -10 -9 -9 -8 --------- Run | Yrd Mat Min Mat Min Mat Distress Signals 2 | . . . 1 . 1 Communications Jammed . | . . . . . . Distress Signals . | . . . . . . Times Spotted 60 | . 12 8 13 4 23 Peak Tracking Total 6 | . 6 4 4 2 6 Tactical Retreats 5 | . 2 1 . . 2 Traps | -11 -10 -10 -9 -9 -8 ------- Run | Yrd Mat Min Mat Min Mat Traps Triggered 1 | . . . . . 1 Indirectly . | . . . . . . Trap Hack Attempts . | . . . . . . Triggered . | . . . . . . Disarmed . | . . . . . . Reprogrammed . | . . . . . . Reused . | . . . . . . Traps Extracted . | . . . . . . Installed . | . . . . . . Triggered . | . . . . . . Machines | -11 -10 -10 -9 -9 -8 ---------- Run | Yrd Mat Min Mat Min Mat Machines Disabled 6 | . . . . 1 5 Max in Single Turn 2 | . . . . 1 2 Machines Repaired . | . . . . . . Machines Dismantled . | . . . . . . Machines Sabotaged . | . . . . . . Overloaded Fab Kills . | . . . . . . Hacking | -11 -10 -10 -9 -9 -8 --------- Run | Yrd Mat Min Mat Min Mat Machines Accessed 6 | . 2 . 1 1 2 Terminals 5 | . 2 . 1 . 2 Fabricators . | . . . . . . Repair Stations . | . . . . . . Recycling Units . | . . . . . . Scanalyzers . | . . . . . . Garrison Access . | . . . . . . Total Hacks 9 | . 3 . 1 1 4 Successful 4 | . 1 . . 1 2 Failed 5 | . 2 . 1 . 2 Catastrophic 2 | . 1 . 1 . . Database Lockouts . | . . . . . . Manual 2 | . 1 . 1 . . Terminals 8 | . 3 . 1 . 4 Fabricators . | . . . . . . Repair Stations . | . . . . . . Recycling Units . | . . . . . . Scanalyzers . | . . . . . . Garrison Access . | . . . . . . Terminal Hacks 4 | . 1 . . 1 2 Open Door 1 | . . . . 1 . Alert Level 1 | . . . . . 1 Unreport Threat 2 | . 1 . . . 1 Fabricator Hacks . | . . . . . . Repair Station Hacks . | . . . . . . Recycling Unit Hacks . | . . . . . . Scanalyzer . | . . . . . . Garrison Access Hacks . | . . . . . . Unauthorized Hacks . | . . . . . . Terminals . | . . . . . . Fabricators . | . . . . . . Repair Stations . | . . . . . . Recycling Units . | . . . . . . Scanalyzers . | . . . . . . Garrison Access . | . . . . . . Data Cores Recovered . | . . . . . . Used . | . . . . . . Hacking Detections 2 | . 1 . . . 1 Full Trace Events . | . . . . . . Feedback Events . | . . . . . . Feedback Blocked . | . . . . . . Robot Schematics Acquired . | . . . . . . Robots Built . | . . . . . . Authchips . | . . . . . . Time . | . . . . . . Total Robot Build Rating . | . . . . . . Part Schematics Acquired . | . . . . . . Parts Built . | . . . . . . Authchips . | . . . . . . Time . | . . . . . . Total Part Build Rating . | . . . . . . Parts Repaired . | . . . . . . Time . | . . . . . . Parts Recycled . | . . . . . . Recycled Matter . | . . . . . . Retrieved Matter . | . . . . . . Retrieved Components . | . . . . . . Parts Scanalyzed . | . . . . . . Part Schematics Acquired . | . . . . . . Parts Damaged . | . . . . . . Bothacking | -11 -10 -10 -9 -9 -8 ------------ Run | Yrd Mat Min Mat Min Mat Used RIF Installer . | . . . . . . Robots Hacked . | . . . . . . Non-combat . | . . . . . . Combat . | . . . . . . Robot Hacks Applied . | . . . . . . Relay Couplers Released . | . . . . . . Fabnet Peak Effective % . | . . . . . . Robots Rewired . | . . . . . . Allies Hacked . | . . . . . . Hacks Repelled . | . . . . . . Allies | -11 -10 -10 -9 -9 -8 -------- Run | Yrd Mat Min Mat Min Mat Total Allies . | . . . . . . Largest Group . | . . . . . . Highest-Rated Group . | . . . . . . Highest-Rated Ally . | . . . . . . Total Orders . | . . . . . . Ally Attacks . | . . . . . . Total Damage . | . . . . . . Kills . | . . . . . . Allies Corrupted . | . . . . . . Allies Melted . | . . . . . . Intel | -11 -10 -10 -9 -9 -8 ------- Run | Yrd Mat Min Mat Min Mat Robot Analysis Total . | . . . . . . Derelict Logs Recovered 4 | . . 2 . 2 . Drone Launches . | . . . . . . Drone Recoveries . | . . . . . . Exploration | -11 -10 -10 -9 -9 -8 ------------- Run | Yrd Mat Min Mat Min Mat Turns Passed 2229 | 52 231 492 517 251 686 Spaces Moved 1330 | 38 118 349 220 178 427 Core 16 | 16 . . . . . Treads . | . . . . . . Legs 1314 | 22 118 349 220 178 427 Wheels . | . . . . . . Hover . | . . . . . . Flight . | . . . . . . Fastest Speed 50 | 50 120 120 120 120 120 Average Speed 120 | 113 120 120 120 120 121 Slowest Speed 400 | 250 120 120 120 120 400 Overloaded Moves . | . . . . . . Propulsion Burnouts . | . . . . . . Robots Hopped . | . . . . . . Cave-ins Triggered . | . . . . . . Exploration Rate (%) 32 | 4 33 63 23 33 41 Regions Visited 5 Branch Regions 2 Pre-discovered Areas . | . . . . . . Known Exits Taken . | . . . . . . Unknown Exits Taken 5 | 1 1 1 1 1 . Scrap Searched 1 | . . 1 . . . Spaces Dug 8 | . . . . . 8 Terrain Destroyed 66 | . . . 46 4 16 Melee . | . . . . . . Projectile 9 | . . . . 4 5 AOE 57 | . . . 46 . 11 Terrain Rammed . | . . . . . . Walls Destroyed . | . . . . . . Machines Disabled . | . . . . . . Actions | -11 -10 -10 -9 -9 -8 --------- Run | Yrd Mat Min Mat Min Mat Total 1792 | 44 163 386 447 202 550 Wait 279 | . 11 . 199 . 69 Move 1325 | 37 117 348 219 177 427 Hop . | . . . . . . Pick Up 30 | 1 7 4 3 4 11 Fast Attach 11 | 5 . 4 1 . 1 Attach 15 | 1 1 1 3 . 9 Detach . | . . . . . . Swap 24 | . 4 4 5 6 5 Drop 20 | . 1 5 3 7 4 Fire 83 | . 22 20 13 8 20 Melee . | . . . . . . Ram . | . . . . . . Kick 5 | . . . 1 . 4 Crush . | . . . . . . Escape Stasis . | . . . . . . Rewire . | . . . . . . Trap . | . . . . . . Miscellaneous . | . . . . . . Route ------- -11/Scrapyard -10/Materials -10/Mines -9/Materials -9/Mines -8/Materials History --------- Turn | Location | Event 18 | -11/Scrapyard | Discovered new exit (range 16) 53 | -11/Scrapyard | Entered Materials 130 | -10/Materials | Discovered new exit (range 6) 284 | -10/Materials | Entered Mines 289 | -10/Mines | Learned Materials trap positions 317 | -10/Mines | Build established: Mutant 386 | -10/Mines | Assembled infested the area 391 | -10/Mines | Assisted by a Guerilla fighting off Assembled 597 | -10/Mines | Received a Rocket Launcher from a helpful Derelict 633 | -10/Mines | Core integrity fell below 50% 671 | -10/Mines | Found a damaged Exp. Sensor Array with a note attached 677 | -10/Mines | Lost 4 parts (1p1n2w) 745 | -10/Mines | Found Prototype Device 746 | -10/Mines | Identified Exp. Sensor Array 771 | -10/Mines | Discovered new exit (range 5) 776 | -10/Mines | Entered Materials 776 | -9/Materials | Evolved 2 slots: Propulsion x1, Utility x1 777 | -9/Materials | Loaded intel: 16 trap records 949 | -9/Materials | Build established: Scavenger-Mutant 1283 | -9/Materials | Discovered new exit (range 9) 1293 | -9/Materials | Entered Mines 1320 | -9/Mines | Met a Derelict shopkeep closing up shop 1478 | -9/Mines | Learned Materials stockpile data 1509 | -9/Mines | Learned 2 Materials zone layouts 1525 | -9/Mines | Discovered new exit (range 11) 1544 | -9/Mines | Entered Materials 1544 | -8/Materials | Evolved 2 slots: Utility x1, Weapon x1 1834 | -8/Materials | Build established: Scavenger-Tank 2230 | -8/Materials | Self-destructed Last Messages --------------- 02189_ Flexi-carbon Leg destroyed. 02190_ Gauss Cannon severed. 02190_ Adv. Beam Rifle severed. 02192_ Carbon-fiber Leg severed. 02198_ U-05 Engineer builds a Wall. 02200_ Com. Battery destroyed. 02203_ Adv. Heat Sink severed. 02209_ Carbon-fiber Leg severed. 02213_ Aluminum Leg severed. 02222_ C-17 Slicer destroyed. 02225_ Overheating: System interference. 02225_ Gatling Laser temporarily disabled. 02225_ Beam Rifle temporarily disabled. 02226_ Power failure, Lgt. Nuclear Core shutdown. 02227_ Gatling Laser severed. 02229_ Particle Gun broken. 02229_ Overheating: Short circuit. 02230_ Overheating: Matter decay (-46). [Achievement: Just Browsing] Map ----- +----------------------------------------------------+ | | | | | | | | | | | | | | | | | ???????????############??????????????????????????? | | ???????????# #??????????????????????????? | | ???????????# """ """ #??????????????????????????? | | ???????????# """ """ #??????????????????????????? | | ?????##????# """ "" ############??????######???? | | ????# ???# """ """ ## #?????##!!!!##??? | | ????# ?# ##%""" """ #?????#! !#??? | | # # |! ######/######%""" """ #?????# #??? | | # / |! ####% !%+[""" """ ####### ###??? | | ????# !! ] ######% # #????? | | ????# "" ##???#[ # #????? | | ????##### ###### ![#???# !== " #####+###????? | | ??????????????## H##???# *%[ # #? !?????? | | ???????????"" # !%=############+## # """ ????? | | ???????????"" / # """ % #???? | | ??????????????# T != " """ #???? | | ??????????????# #####c######+##### #???? | | ???????????#+### ### %@[ # ??? #???? | | ???????????# #?# #?# T c # " #?? [[ #???? | | ??????????## ### #?# ! # T #?? [[ #???? | | ##### #?# # " #??? #???? | | + #?# !# #??? ######???? | | ##### ######?# """"" # """ #????#????????? | | ??????????# #??????# """"" # """ #?????????????? | | ??????????# #??????# """"" # ?"" #?????????????? | | ##????????# #??????# # ?? #?????????????? | | #????????# #??????##?####+## ??? #?????????????? | | ####?##??# #????????????? ## ????#?????????????? | | # ? ??# #???????????????????????????????????? | | #! "?" #?# #???????????????????????????????????? | | # """ #?# #???????????????????????????????????? | | # """ #?# #???????????????????????????????????? | | # """ #?# #???????????????????????????????????? | | # """ #?# #???????????????????????????????????? | | # ### #######?????????????????????????????? | | ## """ # #?????????????????????????????? | | ?#! """%+ #?????????????????????????????? | | ## """ # #?????????????????????????????? | | + """ ####+### #?????????????????????????????? | | ## """ ## # #?????????????????????????????? | | ?# ## #? #?????????????????????????????? | | ########## """ #?? ????????????????????????????? | +----------------------------------------------------+ Best States ------------- Heat Dissipation 77 Energy Generation 18 Energy Capacity 310 Matter Stores 300 Matter Capacity 300 Sight Range 16 Robot Scan Range 20 Terrain Scan Range 16 Terrain Scan Density 10 Armor Coverage 225 Power Shielding 33 Evasion (%) 55 Item Schematics ----------------- None Robot Schematics ------------------ None Fabricated ------------ Nothing Alien Tech Used ----------------- None Achievements -------------- Just Browsing Challenges ------------ None Game ------ Seed TerrainPointMediator Manual? 0 Play Time 00:23:43 Cumulative 26.0 hours Start 2024.07.20 @ 13:47:54 End 2024.07.20 @ 14:09:54 Sessions 1 Manual Loads 0 Difficulty Rogue Special Mode None Game No. 45 Rogue 44 Adventurer 1 Explorer 0 Win Type - Total 0 Types 0/0/0/0/0/0/0/0/0 Lore% 12 Gallery% 25 Achievement% 16 Wizard Run 0 Options --------- Layout 1 ASCII 0 Keyboard 1 Movement Numpad Keybinds 0 Fullscreen 1 Font 24/Smallcaps Map View 50x40 Zoom Use 0% Tactical HUD 1 Map Filters NONE Filters NONE Steam 1 RUN: 45e47829-c9b0-453c-8377-8bcd10b6ac5a